{"text_format":"1","workbook":"xlsx","n_sheets":7,"sheets":["Overview","Drag","Shortcut Key","Move or Copy","Link","Find & Replace","VBA"],"not_rendered":{"charts":0,"images":0,"macros":1,"external_links":0,"defined_names":0,"comments":0,"pivot_tables":0},"unopened":[],"bounds":{"document_bytes":16777216,"sheet_cells":100000,"rows_first":2000,"rows_last":500,"rows_between":2000,"halvings":0,"cell_chars":16384,"cell_head_chars":4096},"cells_cut":0,"cells_raw":0,"read":"whole","date_system":"1900"}

{"sheet":"Overview","index":0,"n_rows":9,"n_cols":5,"rows_kept":9,"cut":false,"hidden":false,"merged":[[1,1,1,4]]}
[]
[null,"Dataset Overview"]
[]
[null,"Student Name","Physics","Chemistry","Average Marks"]
[null,"Ricky Hopkings",75,79,{"$f":"(C5+D5)/2","v":77}]
[null,"Stuart Johnson",82,80,{"$f":"(C6+D6)/2","v":81}]
[null,"Natalia Austin",54,88,71]
[null,"Alisha Moor",98,81,89.5]
[null,"Peter Bon",83,78,80.5]

{"sheet":"Drag","index":1,"n_rows":9,"n_cols":5,"rows_kept":9,"cut":false,"hidden":false,"merged":[[1,1,1,4]]}
[]
[null,"Dragging the Mouse"]
[]
[null,"Student Name","Physics","Chemistry","Average Marks"]
[null,"Ricky Hopkings",75,79,{"$f":"(C5+D5)/2","v":77}]
[null,"Stuart Johnson",82,80,{"$f":"(C6+D6)/2","v":81}]
[null,"Natalia Austin",54,88,71]
[null,"Alisha Moor",98,81,89.5]
[null,"Peter Bon",83,78,80.5]

{"sheet":"Shortcut Key","index":2,"n_rows":9,"n_cols":5,"rows_kept":9,"cut":false,"hidden":false,"merged":[[1,1,1,4]]}
[]
[null,"Using Shortcut Key"]
[]
[null,"Student Name","Physics","Chemistry","Average Marks"]
[null,"Ricky Hopkings",75,79,{"$f":"(C5+D5)/2","v":77}]
[null,"Stuart Johnson",82,80,{"$f":"(C6+D6)/2","v":81}]
[null,"Natalia Austin",54,88,71]
[null,"Alisha Moor",98,81,89.5]
[null,"Peter Bon",83,78,80.5]

{"sheet":"Move or Copy","index":3,"n_rows":9,"n_cols":5,"rows_kept":9,"cut":false,"hidden":false,"merged":[[1,1,1,4]]}
[]
[null,"Applying Move or Copy Dialog Box"]
[]
[null,"Student Name","Physics","Chemistry","Average Marks"]
[null,"Ricky Hopkings",75,79,{"$f":"(C5+D5)/2","v":77}]
[null,"Stuart Johnson",82,80,{"$f":"(C6+D6)/2","v":81}]
[null,"Natalia Austin",54,88,71]
[null,"Alisha Moor",98,81,89.5]
[null,"Peter Bon",83,78,80.5]

{"sheet":"Link","index":4,"n_rows":9,"n_cols":5,"rows_kept":9,"cut":false,"hidden":false,"merged":[[1,1,1,4]]}
[]
[null,"Keeping Link While Copying"]
[]
[null,"Student Name","Physics","Chemistry","Average Marks"]
[null,"Ricky Hopkings",75,79,{"$f":"(C5+D5)/2","v":77}]
[null,"Stuart Johnson",82,80,{"$f":"(C6+D6)/2","v":81}]
[null,"Natalia Austin",54,88,71]
[null,"Alisha Moor",98,81,89.5]
[null,"Peter Bon",83,78,80.5]

{"sheet":"Find & Replace","index":5,"n_rows":9,"n_cols":5,"rows_kept":9,"cut":false,"hidden":false,"merged":[[1,1,1,4]]}
[]
[null,"Using Find and Replace Features"]
[]
[null,"Student Name","Physics","Chemistry","Average Marks"]
[null,"Ricky Hopkings",75,79,{"$f":"(C5+D5)/2","v":77}]
[null,"Stuart Johnson",82,80,{"$f":"(C6+D6)/2","v":81}]
[null,"Natalia Austin",54,88,71]
[null,"Alisha Moor",98,81,89.5]
[null,"Peter Bon",83,78,80.5]

{"sheet":"VBA","index":6,"n_rows":9,"n_cols":5,"rows_kept":9,"cut":false,"hidden":false,"merged":[[1,1,1,4]]}
[]
[null,"Inserting VBA"]
[]
[null,"Student Name","Physics","Chemistry","Average Marks"]
[null,"Ricky Hopkings",75,79,{"$f":"(C5+D5)/2","v":77}]
[null,"Stuart Johnson",82,80,{"$f":"(C6+D6)/2","v":81}]
[null,"Natalia Austin",54,88,71]
[null,"Alisha Moor",98,81,89.5]
[null,"Peter Bon",83,78,80.5]